Cogmind - Beta 15 @@@ ROGUE MODE // 2025.08.21 @ 12:28:53 Player: Lenbot7 Result: Destroyed by G-47 Trooper with Particle Gun Performance ------------- Evolutions (2) 1000 Regions Visited (5) 1000 Robots Destroyed (13) 65 Value Destroyed (363) 363 Prototype IDs (0) 0 Alien Tech Used (0) 0 Bonus (-26) -26 TOTAL SCORE: 2402 Bonus ------- Friendly Fire -26 Cogmind --------- Core Integrity 0/550 Matter 274/300 Energy 90/100 System Corruption 0% Temperature Cool (9) Movement Core (50) Location -8/Materials Parts ------- > --- POWER (2) -------- (None) > --- PROPULSION (3) --- (None) > --- UTILITY (4) ------ (None) > --- WEAPON (2) ------- (None) > --- INVENTORY (5) ---- Wheel Compact Wheel Compact Wheel Peak State ------------ > --- POWER ------------ Ion Engine > --- PROPULSION ------- Carbon-fiber Leg Carbon-fiber Leg Carbon-fiber Leg > --- UTILITY ---------- Small Storage Unit Hacking Suite > --- WEAPON ----------- Light EM Pulse Cannon Light Assault Rifle > --- INVENTORY -------- Wheel Compact Wheel Compact Wheel Hover Unit Medium Laser Light Assault Rifle Mining Claw [Rating: 17] Favorites ----------- Power Ion Engine Engine Ion Engine Propulsion Aluminum Leg Leg Aluminum Leg Hover Unit Hover Unit Utility Small Storage Unit Device Improved Terrain Scanner Storage Small Storage Unit Processor Visual Processing Unit Hackware Hacking Suite Weapon Light Assault Rifle Energy Gun Medium Laser Energy Cannon Light EM Pulse Cannon Ballistic Gun Light Assault Rifle Slashing Weapon Mining Claw Build | -11 -10 -10 -9 -9 -8 ------- Run | Yrd Mat Min Mat Min Mat Slots Evolved 4 | . . . 2 . 2 Power 1 | . . . 1 . . Propulsion 1 | . . . . . 1 Utility 2 | . . . 1 . 1 Weapon . | . . . . . . Parts Attached 17 | 1 6 4 . 1 5 Power 1 | . . 1 . . . Engine 1 | . . 1 . . . Core . | . . . . . . Reactor . | . . . . . . Propulsion 6 | . 2 . . 1 3 Treads . | . . . . . . Leg 5 | . 1 . . 1 3 Wheel . | . . . . . . Hover 1 | . 1 . . . . Flight . | . . . . . . Utility 5 | 1 3 1 . . . Device 1 | 1 . . . . . Storage 2 | . 2 . . . . Processor 1 | . 1 . . . . Hackware 1 | . . 1 . . . Protection . | . . . . . . Artifact . | . . . . . . Weapon 5 | . 1 2 . . 2 Energy Gun 1 | . . . . . 1 Energy Cannon 1 | . 1 . . . . Ballistic Gun 2 | . . 1 . . 1 Ballistic Cannon . | . . . . . . Launcher . | . . . . . . Special Weapon . | . . . . . . Impact Weapon . | . . . . . . Slashing Weapon 1 | . . 1 . . . Piercing Weapon . | . . . . . . Special Melee Weapon . | . . . . . . Unidentified Prototypes . | . . . . . . Parts Lost 13 | . . . . 1 12 Power 1 | . . . . . 1 Propulsion 5 | . . . . 1 4 Utility 2 | . . . . . 2 Weapon 5 | . . . . . 5 Highest Loss Streak 12 | . . . . 1 12 To Critical Strikes . | . . . . . . Average Backups 6 | 6 5 7 7 7 6 Power . | 1 . . . . . Propulsion 4 | 4 3 4 4 4 4 Utility . | . . . . . . Weapon 1 | 1 1 2 3 3 2 Tool/Special . | . . . . . . Unused Backups 13 | 6 4 . . . 3 Power 2 | 1 1 . . . . Propulsion 8 | 2 3 . . . 3 Utility 1 | 1 . . . . . Weapon 2 | 2 . . . . . Tool/Special . | . . . . . . Average Slot Usage (%) 84 | . 100 100 77 74 45 Engine 11 | . 14 14 11 11 4 Leg 23 | . 27 28 22 19 13 Device 3 | . 10 . . . . Storage 12 | . 14 14 11 11 8 Processor 4 | . 3 13 . . . Hackware 3 | . . . 11 11 4 Energy Gun 6 | . 14 7 . . 1 Energy Cannon 7 | . 1 14 11 11 4 Ballistic Gun 8 | . 12 . 11 11 8 Slashing Weapon 1 | . . 6 . . . Peak Build Rating 17 | 9 9 10 10 10 17 Average Rating 8 | 6 8 9 10 9 8 On Entrance 9 | 6 9 9 10 10 10 Naked Turns 1 | . . . . . 1 Heaviest Build 89 | 14 89 16 15 15 15 Greatest Support 45 | 20 20 20 20 20 45 Greatest Overweight (x) 4 | . 4 . . 1 1 Average Overweight (x) . | . . . . . . Largest Inventory Capacity 25 | 8 25 8 8 8 8 Average Capacity 8 | 8 10 8 8 8 7 Most Carried 9 | 8 9 8 7 8 8 Average Carried 6 | 6 5 7 7 7 5 Final Capacity 8 | 8 8 8 8 8 5 Final Carried 8 | 8 7 7 7 7 3 Class Distribution -------------------- 100% | Mutant Dominant Class ---------------- Mutant | -10/Materials Mutant | -10/Mines Mutant | -9/Materials Mutant | -9/Mines Mutant | -8/Materials Resources | -11 -10 -10 -9 -9 -8 ----------- Run | Yrd Mat Min Mat Min Mat Matter Collected 371 | 226 66 50 10 19 . Remotely . | . . . . . . Salvage Created 505 | 119 67 82 . 135 102 Parts 35 | 14 5 5 . 9 2 Haulers Intercepted . | . . . . . . Recyclers Shooed 1 | . 1 . . . . Parts Field Recycled . | . . . . . . Retrieved Matter . | . . . . . . Parts Self-Destructed . | . . . . . . Prevented . | . . . . . . Kills | -11 -10 -10 -9 -9 -8 ------- Run | Yrd Mat Min Mat Min Mat Combat Hostiles Destroyed 8 | . 1 2 . 3 2 Melee 1 | . . . . . 1 Guns 3 | . 1 1 . . 1 Cannons 4 | . . 1 . 3 . Classes Destroyed 6 | 2 2 . . 1 1 Tunneler 3 | 3 . . . . . Recycler 1 | 1 . . . . . Watcher 1 | . 1 . . . . Grunt 6 | . 1 2 . 2 1 Brawler 1 | . . . . 1 . Specialist 1 | . . . . . 1 Best Kill Streak 3 | 3 2 1 . 3 2 Combat Bots Only 3 | . 1 1 . 3 2 Max Kills in Single Turn 1 | 1 1 1 . 1 1 Gunslinging . | . . . . . . Exploded . | . . . . . . Melee 1 | . . . . . 1 Uniques/NPCs Destroyed . | . . . . . . Combat | -11 -10 -10 -9 -9 -8 -------- Run | Yrd Mat Min Mat Min Mat Hostile Shots Fired 221 | . 7 22 . 19 173 Missed 81 | . 2 4 . 4 71 Hits 140 | . 5 18 . 15 102 Projectile 140 | . 5 18 . 15 102 Critical Strikes 3 | . . . . . 3 Damage Taken 1786 | . 54 209 . 168 1355 Core 668 | . 12 59 . 46 551 Absorbed by Shields . | . . . . . . Core Remaining (%) 86 | 100 . 71 . 88 . Volleys Fired 73 | 16 17 14 1 9 16 Largest 2 | 2 2 2 2 2 2 Hottest 106 | 70 106 106 76 76 76 Shots Fired 128 | 32 34 21 2 18 21 Gun 107 | 32 33 12 1 9 20 Cannon 21 | . 1 9 1 9 1 Launcher . | . . . . . . Special . | . . . . . . Kinetic 60 | 16 16 2 1 9 16 Thermal 47 | 16 17 10 . . 4 Explosive . | . . . . . . Electromagnetic 21 | . 1 9 1 9 1 Robot Hit Streak 14 | 7 3 10 4 8 14 Robot Miss Streak 3 | 1 3 3 . 1 2 Penetration Max . | . . . . . . Secondary Targets . | . . . . . . Shots Hit Robots 84 | 23 15 13 2 12 19 Core Hits 28 | 6 5 4 . 5 8 Critical Kills . | . . . . . . Critical Parts Destroyed . | . . . . . . Critical Strikes 4 | 2 1 . . . 1 Burn 4 | 2 1 . . . 1 Melee Attacks 2 | . . . . . 2 Impact . | . . . . . . Slashing 2 | . . . . . 2 Piercing . | . . . . . . Sneak Attacks 1 | . . . . . 1 Combat Hostiles . | . . . . . . Follow-up Attacks . | . . . . . . Damage Inflicted 1137 | 251 160 245 48 195 238 Guns 707 | 251 160 83 8 43 162 Cannons 354 | . . 162 40 152 . Explosions . | . . . . . . Melee 76 | . . . . . 76 Ramming . | . . . . . . Kinetic 320 | 77 72 9 8 43 111 Thermal 387 | 174 88 74 . . 51 Explosive . | . . . . . . Electromagnetic 354 | . . 162 40 152 . Impact . | . . . . . . Slashing 76 | . . . . . 76 Piercing . | . . . . . . Highest Corruption 4 | . 1 1 4 4 . Average Corruption 1 | . 1 1 3 4 . Corruption Purged . | . . . . . . Corruption Blocked . | . . . . . . Effects 4 | . . 2 1 1 . Message Errors 1 | . . . . 1 . Matter Fused 2 | . . 1 1 . . Data Loss (major) 1 | . . 1 . . . Overload Shots . | . . . . . . Overflow Damage 42 | . . . 32 . 10 Projectiles 32 | . . . 32 . . Explosions . | . . . . . . Melee 10 | . . . . . 10 Knockbacks . | . . . . . . Impact . | . . . . . . Kinetic . | . . . . . . Secondary . | . . . . . . Self-Inflicted Damage . | . . . . . . Shots . | . . . . . . Rammed . | . . . . . . Targets Rammed . | . . . . . . Kicked . | . . . . . . Crushed . | . . . . . . Highest Temperature 323 | 100 160 323 30 195 60 Average Temperature 80 | 38 56 154 17 103 19 Received Heat Transfer 726 | . 30 120 . 90 486 Effects 3 | . . 3 . . . Interference 3 | . . 3 . . . Siege Activations . | . . . . . . Martial Activations . | . . . . . . Shielding Activations . | . . . . . . Robots Disrupted . | . . . . . . Combat Hostiles . | . . . . . . Robots Corrupted . | . . . . . . Combat Hostiles . | . . . . . . Parts Fried . | . . . . . . Impact Corruptions . | . . . . . . Robots Melted . | . . . . . . Combat Hostiles . | . . . . . . Parts Melted . | . . . . . . Heat Transferred 1443 | 666 333 222 . . 222 Parts Sabotaged . | . . . . . . Parts Stolen . | . . . . . . Parts Stripped . | . . . . . . Power Chain Reactions . | . . . . . . Alert | -11 -10 -10 -9 -9 -8 ------- Run | Yrd Mat Min Mat Min Mat Maximum Alert Level . | . . . . . . Low Security (%) 100 | 100 100 100 100 100 100 Level 1 . | . . . . . . Level 2 . | . . . . . . Level 3 . | . . . . . . Level 4 . | . . . . . . Level 5 . | . . . . . . High Security . | . . . . . . Max Security . | . . . . . . Peak Influence 50 | 10 27 20 7 50 35 Initial 7 | . . 5 7 . 7 Average 6 | . 4 3 1 28 4 Influence Increases 264 | 20 64 40 . 70 70 Destroy 0b10 Robot/C 160 | . 20 40 . 60 40 Destroy 0b10 Robot/NC 25 | 20 5 . . . . Destroy Leader 22 | . 2 . . 10 10 Successful Hack 26 | . 21 . . . 5 Disable Machine 15 | . 15 . . . . Destroy Structure 1 | . 1 . . . . Lose Combat Pursuer 15 | . . . . . 15 Influence Decreases 249 | 20 50 34 20 50 75 Entered New Map 35 | . . 9 13 . 13 Time Decay 159 | 20 50 25 7 40 17 Lost Part 55 | . . . . 10 45 Squads Dispatched 9 | . 1 1 2 . 5 Investigation 3 | . . 1 1 . 1 Extermination . | . . . . . . Reinforcement 6 | . 1 . 1 . 4 Assault . | . . . . . . Garrison . | . . . . . . Intercept . | . . . . . . Searches Triggered . | . . . . . . Construction Impeded 1 | . . . . . 1 Haulers Reinforced . | . . . . . . Active Scanning Responses . | . . . . . . Cargo Convoy Interrupts . | . . . . . . Stealth | -11 -10 -10 -9 -9 -8 --------- Run | Yrd Mat Min Mat Min Mat Distress Signals 2 | . 2 . . . . Communications Jammed . | . . . . . . Distress Signals . | . . . . . . Times Spotted 26 | . 4 5 1 6 10 Peak Tracking Total 8 | . 3 3 1 3 8 Tactical Retreats 1 | . . . . . 1 Traps | -11 -10 -10 -9 -9 -8 ------- Run | Yrd Mat Min Mat Min Mat Traps Triggered 3 | . . . 3 . . Indirectly . | . . . . . . Trap Hack Attempts . | . . . . . . Triggered . | . . . . . . Disarmed . | . . . . . . Reprogrammed . | . . . . . . Reused . | . . . . . . Traps Extracted . | . . . . . . Installed . | . . . . . . Triggered . | . . . . . . Machines | -11 -10 -10 -9 -9 -8 ---------- Run | Yrd Mat Min Mat Min Mat Machines Disabled 1 | . 1 . . . . Max in Single Turn 1 | . 1 . . . . Machines Repaired . | . . . . . . Machines Dismantled . | . . . . . . Machines Sabotaged . | . . . . . . Overloaded Fab Kills . | . . . . . . Hacking | -11 -10 -10 -9 -9 -8 --------- Run | Yrd Mat Min Mat Min Mat Machines Accessed 6 | . 3 1 1 . 1 Terminals 5 | . 3 . 1 . 1 Fabricators . | . . . . . . Repair Stations . | . . . . . . Recycling Units . | . . . . . . Scanalyzers . | . . . . . . Garrison Access . | . . . . . . Total Hacks 17 | . 10 1 3 . 3 Successful 12 | . 6 1 3 . 2 Failed 5 | . 4 . . . 1 Catastrophic 1 | . 1 . . . . Database Lockouts . | . . . . . . Manual 4 | . 3 . 1 . . Terminals 16 | . 10 . 3 . 3 Fabricators . | . . . . . . Repair Stations . | . . . . . . Recycling Units . | . . . . . . Scanalyzers . | . . . . . . Garrison Access . | . . . . . . Terminal Hacks 12 | . 6 1 3 . 2 Record 3 | . 3 . . . . Open Door 1 | . . 1 . . . Emergency Access Points 2 | . . . 1 . 1 Scanalyzer Index 1 | . 1 . . . . Alert Level 2 | . 1 . 1 . . Locate Traps 1 | . . . 1 . . Maintenance Status 1 | . . . . . 1 Zone Layout 1 | . 1 . . . . Fabricator Hacks . | . . . . . . Repair Station Hacks . | . . . . . . Recycling Unit Hacks . | . . . . . . Scanalyzer . | . . . . . . Garrison Access Hacks . | . . . . . . Unauthorized Hacks . | . . . . . . Terminals . | . . . . . . Fabricators . | . . . . . . Repair Stations . | . . . . . . Recycling Units . | . . . . . . Scanalyzers . | . . . . . . Garrison Access . | . . . . . . Data Cores Recovered . | . . . . . . Used . | . . . . . . Hacking Detections 5 | . 3 . 1 . 1 Full Trace Events 4 | . 2 . 1 . 1 Feedback Events 1 | . 1 . . . . Corruption 1 | . 1 . . . . Feedback Blocked . | . . . . . . Robot Schematics Acquired . | . . . . . . Robots Built . | . . . . . . Authchips . | . . . . . . Time . | . . . . . . Total Robot Build Rating . | . . . . . . Part Schematics Acquired . | . . . . . . Parts Built . | . . . . . . Authchips . | . . . . . . Time . | . . . . . . Total Part Build Rating . | . . . . . . Parts Repaired . | . . . . . . Time . | . . . . . . Parts Recycled . | . . . . . . Recycled Matter . | . . . . . . Retrieved Matter . | . . . . . . Retrieved Components . | . . . . . . Parts Scanalyzed . | . . . . . . Part Schematics Acquired . | . . . . . . Parts Damaged . | . . . . . . Bothacking | -11 -10 -10 -9 -9 -8 ------------ Run | Yrd Mat Min Mat Min Mat Used RIF Installer . | . . . . . . Robots Hacked . | . . . . . . Non-combat . | . . . . . . Combat . | . . . . . . Robot Hacks Applied . | . . . . . . Relay Couplers Released . | . . . . . . Fabnet Peak Effective % . | . . . . . . Robots Rewired . | . . . . . . Allies Hacked . | . . . . . . Hacks Repelled . | . . . . . . Allies | -11 -10 -10 -9 -9 -8 -------- Run | Yrd Mat Min Mat Min Mat Total Allies . | . . . . . . Largest Group . | . . . . . . Highest-Rated Group . | . . . . . . Highest-Rated Ally . | . . . . . . Total Orders . | . . . . . . Ally Attacks . | . . . . . . Total Damage . | . . . . . . Kills . | . . . . . . Allies Corrupted . | . . . . . . Allies Melted . | . . . . . . Intel | -11 -10 -10 -9 -9 -8 ------- Run | Yrd Mat Min Mat Min Mat Active Infowar (turns) 376 | 33 229 114 . . . Optics 178 | . 64 114 . . . Terrain 198 | 33 165 . . . . Robot Analysis Total . | . . . . . . Derelict Logs Recovered . | . . . . . . Drone Launches . | . . . . . . Drone Recoveries . | . . . . . . Exploration | -11 -10 -10 -9 -9 -8 ------------- Run | Yrd Mat Min Mat Min Mat Turns Passed 862 | 124 229 215 76 96 122 Spaces Moved 506 | 64 122 144 62 53 61 Core 3 | . . . . . 3 Treads . | . . . . . . Legs 499 | 64 118 144 62 53 58 Wheels . | . . . . . . Hover 4 | . 4 . . . . Flight . | . . . . . . Fastest Speed 50 | 120 120 120 120 120 50 Average Speed 125 | 120 138 120 120 130 117 Slowest Speed 400 | 120 400 120 120 190 120 Overloaded Moves . | . . . . . . Propulsion Burnouts . | . . . . . . Robots Hopped . | . . . . . . Potential Cave-ins . | . . . . . . Cave-ins Triggered . | . . . . . . Exploration Rate (%) 16 | 6 29 32 10 17 6 Regions Visited 5 Branch Regions 2 Pre-discovered Areas . | . . . . . . Known Exits Taken . | . . . . . . Unknown Exits Taken 5 | 1 1 1 1 1 . Scrap Searched . | . . . . . . Spaces Dug . | . . . . . . Terrain Destroyed . | . . . . . . Melee . | . . . . . . Projectile . | . . . . . . AOE . | . . . . . . Terrain Rammed . | . . . . . . Walls Destroyed . | . . . . . . Machines Disabled . | . . . . . . Actions | -11 -10 -10 -9 -9 -8 --------- Run | Yrd Mat Min Mat Min Mat Total 612 | 82 150 165 62 63 90 Wait . | . . . . . . Move 501 | 63 121 143 61 52 61 Hop . | . . . . . . Pick Up 11 | 2 4 2 . 1 2 Fast Attach 2 | 1 . . . . 1 Attach 8 | . 1 . . 1 6 Detach . | . . . . . . Swap 9 | . 5 4 . . . Drop 6 | . 2 2 . . 2 Fire 73 | 16 17 14 1 9 16 Melee 2 | . . . . . 2 Ram . | . . . . . . Kick . | . . . . . . Crush . | . . . . . . Escape Stasis . | . . . . . . Rewire . | . . . . . . Trap . | . . . . . . Miscellaneous . | . . . . . . Route ------- -11/Scrapyard -10/Materials -10/Mines -9/Materials -9/Mines -8/Materials History --------- Turn | Location | Event 15 | -11/Scrapyard | Discovered new exit (range 3) 125 | -11/Scrapyard | Entered Materials 309 | -10/Materials | Discovered new exit (range 18) 343 | -10/Materials | Build established: Mutant 354 | -10/Materials | Entered Mines 536 | -10/Mines | Discovered new exit (range 5) 547 | -10/Mines | Met a Derelict shopkeep closing up shop 569 | -10/Mines | Entered Materials 569 | -9/Materials | Evolved 2 slots: Power x1, Utility x1 631 | -9/Materials | Discovered new exit (range 13) 645 | -9/Materials | Entered Mines 724 | -9/Mines | Discovered new exit (range 15) 741 | -9/Mines | Entered Materials 741 | -8/Materials | Evolved 2 slots: Propulsion x1, Utility x1 843 | -8/Materials | Core integrity fell below 50% 860 | -8/Materials | Core integrity fell below 20% 863 | -8/Materials | Destroyed by G-47 Trooper with Particle Gun Last Messages --------------- T-07 Excavator destroyed. Carbon-fiber Leg destroyed. T-07 Excavator is excavating. G-47 Trooper destroyed. R-06 Scavenger collects Wheel. Lgt. Assault Rifle destroyed. U-05 Engineer lays Concrete. R-06 Scavenger collects Aluminum Leg. U-05 Engineer lays Concrete. Critical hit (Burn: +37). Sneak attack on U-05 Engineer. Destroyed Wheel. ALERT: Construction progress impeded, dispatching reinforcements to local area. Sml. Storage Unit destroyed. Hover Unit destroyed. X-57 Shotgunner destroyed. R-06 Scavenger collects Shotgun. G-47 Trooper suffers critical hit (Burn). Mining Claw destroyed. Map ----- +----------------------------------------------------+ | ?????????????????????????????????? | | ?????????????????????????????????? | | ?????????????????????????????????? | | ?????????????????????????????????? | | ?????????????????????????????????? | | ?????????????????????????????????? | | ?????????????????????????????????? | | ?????????????????????????????????? | | ?????????????????????????????????? | | ?????????????????????????????????? | | ?????????????????????????????????? | | ?????????????????????????????????? | | ?????????????????????????????????? | | ?????????????????????????????????? | | ?????????????????############????? | | ?????????????????# # #????? | | ?????????????????# #[ #????? | | ?????????????????# # """ #????? | | ?????############# + """ #????? | | ???? # """ #????? | | ???? # #????? | | ???? ########????? | | ?????###### #### #########???? | | ??????????# ????# # x ! #???? | | ??????????# ?????# # gg %| #???? | | ?????????????????# g%@! #???? | | ?????????????????# # gg #???? | | ?????????????????# # r #???? | | ?????????????????# #########???? | | ?????????????????# # T #????? | | ?????????????????# # #????? | | ?????????????????# # = #????? | | ?????????????????# " = #????? | | ?????????????????# # #????? | | ?????????????????# # #????? | | ?????????????????#=% ########????? | | ?????????????????# #???????????? | | ?????????????????# %[#???????????? | | ?????????????????# #???????????? | | ?????????????????# +???????????? | | ?????????????????# #???????????? | | ?????????????????# #???????????? | | ?????????????????# #?????+?????? | | ?????????????????##+##???????????? | | ?????????????????? ?????????????? | | ??????????????????""?????????????? | | ??????????????????G ????+????????? | | ???????????????????"?????????????? | | ?????????????????????????????????? | | ?????????????????????????????????? | +----------------------------------------------------+ Best States ------------- Heat Dissipation 31 Energy Generation 10 Energy Capacity 250 Matter Stores 300 Matter Capacity 300 Sight Range 18 Terrain Scan Range 16 Terrain Scan Density 10 Evasion (%) 55 Offensive Hacking 10 Item Schematics ----------------- None Robot Schematics ------------------ None Fabricated ------------ Nothing Repaired ---------- Nothing Alien Tech Used ----------------- None Achievements -------------- None Challenges ------------ None Game ------ Seed PhaseDecoderDiverter Manual? 0 Play Time 00:20:31 Cumulative 3.6 hours Start 2025.08.20 @ 20:01:06 End 2025.08.21 @ 12:28:53 Sessions 3 Manual Loads 0 Difficulty Rogue Special Mode None Game No. 15 Rogue 15 Adventurer 0 Explorer 0 Win Type - Total 0 Types 0/0/0/0/0/0/0/0/0/0 Lore% 2 Gallery% 7 Achievement% 8 Wizard Run 0 Options --------- Layout 1 ASCII 0 Keyboard 0 Movement Mouse Keybinds 0 Fullscreen 1 Font 24/Smallcaps Map View 50x35 Zoom Use 0% Tactical HUD 0 Map Filters NONE Filters NONE Steam 1 RUN: 0e4a3eb0-1398-44a2-a250-0d315c45f072